bitfinex/quotes_SOLUSD_20220212
["timestamp","ask_amount","ask_price","bid_price","bid_amount"]
[1644689495885,41.92836666,99.265,99.17,12.2]
[1644689496082,1.39284051,99.264,99.134,51.6311]
[1644689496281,41.92836666,99.265,99.134,51.6311]
[1644689496282,1.39284051,99.255,99.167,103.1]
[1644689496485,1.39284051,99.258,99.195,103.1]
[1644689496683,41.92836666,99.265,99.16,12.2]
[1644689497084,0.00284051,99.271,99.19,15.1213]
[1644689497284,4.23099796,99.363,99.201,103.1]
[1644689497683,4.23099796,99.376,99.202,17.51602337]
[1644689497883,2.82300521,99.362,99.204,103.1]
[1644689498086,38.63293767,99.361,99.204,103.1]
[1644689498288,17.93450521,99.36,99.231,103.1]
[1644689498484,2.82300521,99.359,99.24,12.2]
[1644689498885,2.82300521,99.359,99.241,103.1]
[1644689499385,2.82300521,99.359,99.25,15.1115]
[1644689499585,2.82300521,99.36,99.261,103.1]
[1644689500189,4.23099796,99.388,99.261,112.76]
[1644689500415,4.23099796,99.405,99.261,112.76]
[1644689500588,4.23099796,99.424,99.28,15.1071]
[1644689500789,112.5,99.409,99.29,12.2]
[1644689501187,42.40114511,99.408,99.281,103.1]
[1644689501391,45.22492159,99.408,99.281,103.1]
[1644689501589,76.7505,99.407,99.281,103.1]
[1644689501887,15.1054,99.4,99.29,15.1056]
[1644689502087,79.57427648,99.407,99.29,15.1056]
[1644689502088,2.82377648,99.399,99.29,15.1056]
[1644689502288,4.23099796,99.4,99.29,15.1056]
[1644689502688,4.23099796,99.4,99.281,103.1]
[1644689503294,15.107,99.39,99.281,103.1]
[1644689503495,15.107,99.39,99.271,24.6065]
[1644689503496,41.66423272,99.389,99.271,24.6065]
[1644689503695,112.5,99.369,99.26,12.2]
[1644689503896,45.87749809,99.368,99.247,103.1]
[1644689504098,48.70127457,99.368,99.247,103.1]
[1644689504296,2.82377648,99.367,99.247,103.1]
[1644689505099,15.111,99.36,99.25,15.112]
[1644689505298,2.82377648,99.359,99.25,15.112]
[1644689506298,2.82377648,99.367,99.25,15.112]
[1644689506496,40.28669304,99.349,99.25,15.112]
[1644689506708,2.82377648,99.348,99.251,0.25]
[1644689506899,2.82377648,99.348,99.26,15.1105]
[1644689507100,2.82377648,99.348,99.26,27.3105]
[1644689507500,2.82377648,99.348,99.26,15.1105]
[1644689507697,2.82377648,99.348,99.247,103.1]
[1644689508722,15.1136,99.34,99.25,15.1128]
[1644689509121,2.82377648,99.339,99.25,15.1128]
[1644689509625,2.82377648,99.339,99.251,103.1]
[1644689510024,37.80683621,99.329,99.23,15.1149]
[1644689510225,2.82377648,99.328,99.23,15.1149]
[1644689510623,2.82377648,99.328,99.211,22.5417]
[1644689511323,2.82377648,99.328,99.212,103.1]
[1644689511534,15.1167,99.32,99.22,15.1175]
[1644689511825,2.82377648,99.319,99.22,15.1175]
[1644689514124,2.82377648,99.328,99.24,15.114]
[1644689514626,2.82377648,99.328,99.24,27.314]
[1644689515430,37.80683621,99.329,99.24,27.314]
[1644689516029,37.80683621,99.329,99.241,103.1]
[1644689516230,37.80683621,99.329,99.26,15.1113]
[1644689516629,2.83202917,99.328,99.26,15.1113]
[1644689516829,37.80683621,99.329,99.261,103.1]
[1644689517731,37.80683621,99.329,99.27,15.1094]
[1644689517931,37.80683621,99.329,99.271,103.1]
[1644689518530,15.1096,99.37,99.271,103.1]
[1644689518732,2.83172932,99.369,99.281,103.1]
[1644689518931,15.0467,99.438,99.311,103.1]
[1644689518932,4.23099796,99.412,99.311,103.1]
[1644689519132,2.83172932,99.437,99.32,12.2]
[1644689519433,2.83172932,99.437,99.321,103.1]
[1644689519635,47.90198694,99.436,99.321,103.1]
[1644689519831,2.83172932,99.435,99.321,103.1]
[1644689520435,2.83172932,99.435,99.34,15.0976]
[1644689520633,2.83172932,99.435,99.34,27.2976]
[1644689521033,2.83172932,99.435,99.341,103.1]
[1644689522735,2.83172932,99.435,99.36,15.0959]
[1644689523137,2.83172932,99.435,99.341,103.1]
[1644689525036,10.25172932,99.435,99.34,12.2]
[1644689525236,2.83172932,99.434,99.32,27.3017]
[1644689525436,2.83172932,99.434,99.32,15.1017]
[1644689525838,8.48723379,99.435,99.32,15.1017]
[1644689526038,2.83172932,99.433,99.32,15.1017]
[1644689526537,7.06272728,99.433,99.32,15.1017]
[1644689526738,15.1011,99.43,99.3,15.1048]
[1644689526938,27.3011,99.43,99.3,15.1048]
[1644689527236,36.18740783,99.429,99.291,147.1756]
[1644689527440,8.48723379,99.428,99.291,147.1756]
[1644689527640,45.46912613,99.412,99.291,147.1756]
[1644689527838,2.83172932,99.411,99.291,147.1756]
[1644689528240,16.5199446,99.411,99.291,147.1756]
[1644689528439,31.6258446,99.41,99.292,103.1]
[1644689528641,2.83172932,99.409,99.292,103.1]
[1644689529040,2.83172932,99.409,99.293,5.032]
[1644689529246,2.83172932,99.411,99.294,0.25]
[1644689529441,2.83172932,99.408,99.294,0.25]
[1644689529640,2.83172932,99.41,99.295,5.032]
[1644689529840,2.83172932,99.411,99.31,12.2]
[1644689530044,2.83172932,99.411,99.311,103.1]
[1644689531140,2.83172932,99.411,99.32,15.1015]
[1644689531343,2.83172932,99.411,99.321,103.1]
[1644689532142,2.83172932,99.411,99.32,27.3015]
[1644689532343,2.62390296,99.41,99.3,15.1049]
[1644689532544,2.83172932,99.409,99.29,12.2]
[1644689532742,2.83172932,99.409,99.291,73.0245]
[1644689532942,2.62390296,99.408,99.291,73.0245]
[1644689533144,2.83172932,99.407,99.291,24.6599]
[1644689533342,15.108,99.4,99.291,24.6599]
[1644689533542,2.83172932,99.399,99.291,24.6599]
[1644689533941,0.33172932,99.399,99.291,24.6599]
[1644689534142,13.68099306,99.407,99.291,24.6599]
[1644689534642,15.1078,99.4,99.291,24.6599]
[1644689535245,2.62390296,99.399,99.291,24.6599]
[1644689535545,103.1,99.388,99.28,72.469703]
[1644689535748,110.28,99.388,99.28,72.469703]
[1644689535947,21.96850537,99.387,99.28,72.469703]
[1644689536152,103.1,99.386,99.28,72.469703]
[1644689536350,119.40489602,99.386,99.28,72.469703]
[1644689536548,103.1,99.384,99.28,72.469703]
[1644689536751,34.69252179,99.369,99.28,72.469703]
[1644689537148,8.28751231,99.368,99.28,72.469703]
[1644689537348,21.96850537,99.368,99.221,23.5283]
[1644689537651,16.30489602,99.367,99.221,23.5283]
[1644689537848,4.23099796,99.361,99.221,23.5283]
[1644689538050,45.35472098,99.349,99.221,23.5283]
[1644689538248,42.85472098,99.349,99.221,23.5283]
[1644689538650,16.30489602,99.348,99.222,103.1]
[1644689538849,42.85472098,99.349,99.223,5.035]
[1644689539249,42.85472098,99.349,99.23,12.2]
[1644689539453,2.62390296,99.348,99.231,5.035]
[1644689539648,2.62390296,99.348,99.26,15.1108]
[1644689539851,42.85472098,99.349,99.26,25.5208]
[1644689540949,42.85472098,99.349,99.261,103.1]
[1644689541150,72.9829,99.387,99.28,15.1081]
[1644689541353,72.9829,99.387,99.27,12.2]
[1644689541354,72.9829,99.387,99.281,103.1]
[1644689541550,12.2,99.42,99.281,108.133]
[1644689541752,2.62390296,99.418,99.281,108.133]
[1644689541949,2.62390296,99.418,99.281,103.1]
[1644689542148,47.42715289,99.417,99.281,103.1]
[1644689542350,47.42715289,99.417,99.282,0.25]
[1644689542548,2.62390296,99.416,99.291,103.1]
[1644689542752,47.42715289,99.417,99.291,103.1]
[1644689543049,2.62390296,99.416,99.291,103.1]
[1644689545053,2.62390296,99.416,99.29,27.3071]
[1644689545254,17.07100471,99.415,99.281,48.5917]
[1644689545652,2.62390296,99.414,99.281,48.5917]
[1644689545852,12.2,99.4,99.281,48.5917]
[1644689546053,40.29447367,99.399,99.281,48.5917]
[1644689546254,42.91837663,99.399,99.281,48.5917]
[1644689546454,2.62390296,99.398,99.281,48.5917]
[1644689546655,2.62390296,99.398,99.282,0.25]
[1644689546857,40.29447367,99.399,99.282,103.35]
[1644689548555,40.29447367,99.399,99.29,15.1069]
[1644689548756,40.29447367,99.399,99.3,12.2]
[1644689549178,40.29447367,99.399,99.301,103.1]
[1644689549557,40.29447367,99.399,99.321,103.1]
[1644689550157,4.23099796,99.43,99.321,103.1]
[1644689550558,4.23099796,99.441,99.321,103.1]
[1644689550960,4.23099796,99.441,99.33,15.1005]
[1644689551162,37.08391995,99.44,99.33,15.1005]
[1644689551559,39.70782291,99.44,99.33,15.1005]
[1644689551766,37.08391995,99.44,99.33,15.1005]
[1644689552166,2.62390296,99.439,99.33,15.1005]
[1644689552566,2.83861061,99.417,99.33,15.1005]
[1644689552766,45.9407112,99.416,99.33,15.1005]
[1644689553370,45.9407112,99.416,99.331,103.1]
[1644689553567,45.9407112,99.416,99.34,15.099]
[1644689553968,2.62390296,99.415,99.34,15.099]
[1644689554167,2.62390296,99.415,99.331,0.25]
[1644689554366,2.62390296,99.415,99.31,12.2]
[1644689554568,2.62390296,99.415,99.311,103.1]
[1644689555168,45.67277847,99.416,99.32,15.1017]
[1644689555371,2.83861061,99.425,99.321,103.1]
[1644689555868,2.83861061,99.444,99.322,0.25]
[1644689556069,2.83861061,99.442,99.322,0.25]
[1644689556373,2.83861061,99.438,99.33,15.1]
[1644689556569,2.83861061,99.428,99.321,103.1]
[1644689556787,2.83861061,99.425,99.28,12.2]
[1644689556987,12.2,99.41,99.26,12.2]
[1644689557188,46.23767204,99.399,99.264,75.38130296]
[1644689557389,46.23767204,99.399,99.27,12.2]
[1644689557689,2.83861061,99.425,99.31,27.3032]
[1644689557888,2.83861061,99.436,99.31,27.3032]
[1644689558194,2.83861061,99.437,99.31,27.3032]
[1644689558388,1.83861061,99.437,99.31,27.3032]
[1644689558588,40.48089261,99.436,99.31,27.3032]
[1644689559188,40.48089261,99.436,99.311,103.1]
[1644689559388,40.48089261,99.436,99.34,15.0995]
[1644689560389,43.10479557,99.436,99.34,15.0995]
[1644689560795,40.48089261,99.436,99.34,15.0995]
[1644689562390,2.62390296,99.435,99.34,15.0995]
[1644689562590,2.62390296,99.435,99.32,15.1013]
[1644689562791,2.62390296,99.435,99.315,103.1]
[1644689563795,2.62390296,99.435,99.33,15.1009]
[1644689564193,2.62390296,99.435,99.331,103.1]
[1644689564393,40.48089261,99.436,99.331,103.1]
[1644689565897,40.48089261,99.436,99.34,15.0992]
[1644689566096,2.62390296,99.435,99.34,15.0992]
[1644689566698,40.48089261,99.436,99.34,15.0992]
[1644689566897,40.48089261,99.436,99.43,72.360376]
[1644689567197,40.48089261,99.436,99.43,52.36408608]
[1644689567397,2.62390296,99.435,99.43,52.36408608]
[1644689567599,12.2,99.44,99.43,58.42408608]
[1644689568898,12.2,99.44,99.43,52.36408608]
[1644689569896,12.2,99.44,99.43,55.39628605]
[1644689570100,2.62390296,99.47,99.43,52.36408608]
[1644689570298,4.23099796,99.488,99.43,52.36408608]
[1644689570496,4.23099796,99.502,99.43,52.36408608]
[1644689570700,0.50490632,99.51,99.43,52.36408608]
[1644689570900,47.49941345,99.493,99.43,52.36408608]
[1644689571502,0.50490632,99.51,99.43,52.36408608]
[1644689571702,0.50490632,99.51,99.431,0.25]
[1644689572102,0.50490632,99.51,99.43,52.36408608]
[1644689572305,0.50490632,99.51,99.431,103.35]
[1644689572507,0.50490632,99.51,99.44,15.0842]
[1644689572702,0.50490632,99.51,99.44,23.4642]
[1644689573708,0.50490632,99.51,99.441,103.1]
[1644689573906,0.50490632,99.51,99.451,103.1]
[1644689574304,4.23099796,99.588,99.453,103.1]
[1644689574504,12.2,99.59,99.455,103.1]
[1644689574706,119.84656005,99.567,99.456,5.025]
[1644689574906,2.614041,99.547,99.461,103.1]
[1644689575106,2.614041,99.547,99.48,15.0756]
[1644689576108,2.614041,99.547,99.481,103.1]
[1644689576409,2.614041,99.547,99.5,15.0745]
[1644689577310,2.614041,99.547,99.5,27.2745]
[1644689578607,2.614041,99.547,99.501,103.1]
[1644689578808,0.004041,99.547,99.51,15.0684]
[1644689579408,0.004041,99.547,99.511,103.1]
[1644689580812,0.004041,99.547,99.52,15.0692]
[1644689581011,0.004041,99.547,99.521,103.1]
[1644689582015,0.004041,99.547,99.53,15.0695]
[1644689582215,0.004041,99.547,99.531,103.1]
[1644689582419,0.004041,99.547,99.531,113.63]
[1644689582815,4.6353186,99.63,99.533,103.1]
[1644689583014,34.29637172,99.629,99.54,12.2]
[1644689583215,34.29637172,99.629,99.56,15.0637]
[1644689583414,31.79637172,99.629,99.56,15.0637]
[1644689584422,31.79637172,99.629,99.624,0.50169313]
[1644689585419,4.6353186,99.63,99.624,0.50169313]
[1644689585619,4.6353186,99.63,99.624,7.96169313]
[1644689585819,0.0053186,99.63,99.624,7.96169313]
[1644689586019,0.5,99.642,99.624,7.96169313]
[1644689586220,0.5,99.642,99.625,0.25]
[1644689587021,1972.38174168,99.654,99.625,0.25]
[1644689587221,1739.08409222,99.654,99.625,0.25]
[1644689587428,612.8155213,99.654,99.63,12.2]
[1644689587622,316.7636213,99.654,99.63,12.2]
[1644689587822,313.6031213,99.654,99.641,103.1]
[1644689588023,4.23099796,99.836,99.744,4.69306958]
[1644689588227,4.69,99.703,99.69,13.942]
[1644689588422,64.0,99.785,99.714,15.26728904]
[1644689589023,38.0437275,99.784,99.714,15.26728904]
[1644689589735,38.0437275,99.784,99.715,103.1]
[1644689589924,38.0437275,99.784,99.714,15.26728904]
[1644689591827,24.5384,99.848,99.72,12.2]
[1644689592828,24.5384,99.848,99.721,103.1]
[1644689593228,24.5384,99.848,99.72,12.2]
[1644689593927,39.89015355,99.785,99.72,12.2]
[1644689595127,39.89015355,99.785,99.721,5.011]
[1644689595332,39.89015355,99.785,99.72,12.2]
[1644689595529,39.89015355,99.785,99.7,12.2]
[1644689596530,39.89015355,99.785,99.701,103.1]
[1644689596729,39.89015355,99.785,99.7,12.2]
[1644689597133,39.89015355,99.785,99.701,0.25]
[1644689597529,39.89015355,99.785,99.68,12.2]
[1644689597730,5.013,99.784,99.67,12.2]
[1644689597952,5.013,99.784,99.625,5.013]
[1644689597953,15.0516,99.78,99.625,5.013]
[1644689598151,53.5181,99.779,99.625,5.013]
[1644689598351,93.98491582,99.779,99.587,52.3506]
[1644689598551,93.98491582,99.779,99.6,15.0563]
[1644689598552,118.16799891,99.778,99.6,15.0563]
[1644689598751,141.83401769,99.778,99.6,27.2563]
[1644689598951,16.02811582,99.777,99.601,103.1]
[1644689599154,5.015,99.776,99.602,5.014]
[1644689599352,14.00485297,99.776,99.602,5.014]
[1644689599552,30.03296879,99.776,99.601,103.1]
[1644689599759,15.0531,99.76,99.62,12.2]
[1644689599958,35.87157953,99.759,99.625,24.50925966]
[1644689600155,35.87157953,99.759,99.626,103.1]
[1644689600356,5.015,99.758,99.631,103.1]
[1644689600755,5.015,99.758,99.64,15.0495]
[1644689600957,35.87157953,99.759,99.641,108.115]
[1644689601155,35.87157953,99.759,99.641,5.015]
[1644689601359,5.015,99.758,99.641,5.015]
[1644689602755,35.87157953,99.759,99.641,5.015]
[1644689602756,35.87157953,99.759,99.642,0.25]
[1644689602957,5.015,99.758,99.642,2.87390296]
[1644689603155,35.87157953,99.759,99.643,2.62390296]
[1644689603356,35.87157953,99.759,99.643,7.63890296]
[1644689603761,35.87157953,99.759,99.644,2.62390296]
[1644689603961,35.87157953,99.759,99.645,5.014]
[1644689604257,35.87157953,99.759,99.646,2.62390296]
[1644689604457,35.87157953,99.759,99.66,12.2]
[1644689604660,35.87157953,99.759,99.681,103.1]
[1644689604865,70.86219073,99.786,99.682,5.014]
[1644689605358,70.86219073,99.786,99.69,153.01]
[1644689605558,70.86219073,99.786,99.7,164.73]
[1644689605760,48.74019338,99.828,99.71,152.53]
[1644689605961,48.74019338,99.828,99.72,12.2]
[1644689606358,0.50322872,99.84,99.721,2.62390296]
[1644689606559,0.50322872,99.84,99.721,19.36787077]
[1644689606760,3.0,99.786,99.721,19.36787077]
[1644689606963,3.0,99.786,99.722,13.07422194]
[1644689607161,3.0,99.786,99.75,15.0297]
[1644689607363,3.0,99.786,99.76,12.2]
[1644689607759,3.0,99.786,99.75,15.0297]
[1644689607961,3.0,99.786,99.751,103.1]
[1644689608760,3.0,99.786,99.73,27.2373]
[1644689608962,3.0,99.786,99.73,15.0373]
[1644689609361,3.0,99.786,99.731,100.3]
[1644689611465,2.5,99.786,99.731,100.3]
[1644689612467,5.011,99.785,99.731,100.3]
[1644689612664,2.5,99.786,99.731,100.3]
[1644689613665,39.57880279,99.785,99.731,100.3]
[1644689613866,2.5,99.786,99.731,100.3]
[1644689614067,2.5,99.786,99.732,0.25]
[1644689615073,2.5,99.786,99.731,100.3]
[1644689615269,2.5,99.786,99.732,0.25]
[1644689615969,2.5,99.786,99.731,100.3]
[1644689616369,2.5,99.786,99.732,2.62390296]
[1644689616568,2.5,99.786,99.731,100.3]
[1644689617171,2.5,99.786,99.732,0.25]
[1644689617871,2.5,99.786,99.74,15.0365]
[1644689618070,2.5,99.786,99.74,27.2365]
[1644689618470,2.5,99.786,99.74,15.0365]
[1644689618672,2.5,99.786,99.741,100.3]
[1644689619875,1.41113036,99.781,99.741,100.3]
[1644689620074,1.41113036,99.782,99.741,100.3]
[1644689620275,1.41113036,99.784,99.741,100.3]
[1644689620475,1.41113036,99.782,99.741,100.3]
[1644689621075,48.12721657,99.779,99.741,100.3]
[1644689621675,1.41113036,99.778,99.741,100.3]
[1644689621874,1.41113036,99.777,99.73,15.0384]
[1644689622079,1.41113036,99.777,99.711,5.011]
[1644689622277,1.41113036,99.773,99.711,5.011]
[1644689622475,1.41113036,99.773,99.691,100.3]
[1644689622675,1.41113036,99.767,99.692,5.013]
[1644689622886,37.48514912,99.762,99.691,100.3]
[1644689623076,1.7192417,99.751,99.691,100.3]
[1644689623679,1.7192417,99.751,99.692,5.013]
[1644689623880,1.7192417,99.751,99.691,100.3]
[1644689624277,1.7192417,99.751,99.7,15.0435]
[1644689624880,1.7192417,99.751,99.701,100.3]
[1644689626281,1.7192417,99.751,99.71,15.0421]
[1644689627683,1.7192417,99.751,99.711,100.3]
[1644689627880,1.2192417,99.751,99.711,100.3]
[1644689629982,1.2192417,99.751,99.711,69.8]
[1644689630785,1.2192417,99.751,99.71,15.0421]
[1644689631883,1.2192417,99.751,99.711,0.25]
[1644689632082,1.2192417,99.751,99.72,15.0402]
[1644689632282,1.2192417,99.751,99.721,100.3]
[1644689633087,1.2192417,99.751,99.731,100.3]
[1644689634283,1.2192417,99.751,99.74,15.0386]
[1644689634682,1.2192417,99.751,99.731,100.3]
[1644689638084,2.63037206,99.751,99.72,15.0408]
[1644689638287,1.41113036,99.75,99.721,100.3]
[1644689639085,1.41113036,99.748,99.721,100.3]
[1644689639286,0.61433923,99.784,99.721,100.3]
[1644689639486,1.41898534,99.769,99.721,100.3]
[1644689639690,1.41898534,99.777,99.721,100.3]
[1644689639894,1.41898534,99.781,99.721,100.3]
[1644689640090,1.41898534,99.773,99.73,15.04]
[1644689640289,1.41898534,99.776,99.73,15.04]
[1644689640488,1.41898534,99.775,99.73,15.04]
[1644689640888,1.41898534,99.775,99.731,100.3]
[1644689641090,1.41898534,99.77,99.731,100.3]
[1644689641292,11.66898534,99.77,99.71,15.0419]
[1644689641490,1.41898534,99.766,99.71,15.0419]
[1644689641688,10.25,99.77,99.71,15.0419]
[1644689641689,45.91608187,99.76,99.71,15.0419]
[1644689641890,1.41898534,99.755,99.697,100.3]
[1644689642092,5.014,99.769,99.76,4.85580179]
[1644689642288,47.44867905,99.752,99.697,100.3]
[1644689642488,5.013,99.751,99.69,15.0453]
[1644689642692,58.22867905,99.752,99.662,5.013]
[1644689642890,47.44867905,99.752,99.662,5.013]
[1644689643092,5.014,99.751,99.662,5.013]
[1644689643290,16.064,99.751,99.662,5.013]
[1644689643491,2.62390296,99.75,99.662,5.013]
[1644689643691,4.014,99.749,99.625,5.014]
[1644689643892,2.83918827,99.748,99.651,100.3]
[1644689644092,4.014,99.749,99.651,100.3]
[1644689644496,2.62390296,99.748,99.624,0.50169313]
[1644689644693,12.2,99.74,99.624,0.50169313]
[1644689644992,5.46342488,99.739,99.624,0.50169313]
[1644689645193,15.0541,99.73,99.63,15.054]
[1644689645394,45.82467938,99.729,99.63,15.054]
[1644689646395,45.82467938,99.729,99.64,15.053]
[1644689646794,2.62390296,99.728,99.64,15.053]
[1644689646994,45.82467938,99.729,99.64,15.053]
[1644689647197,4.505,99.728,99.641,0.25]
[1644689647494,45.82467938,99.729,99.642,100.3]
[1644689647695,45.82467938,99.729,99.66,15.0503]
[1644689648095,109.8326,99.757,99.66,15.0503]
[1644689648294,47.0476,99.774,99.66,15.0503]
[1644689648497,2.83722895,99.773,99.661,100.3]
[1644689648698,7.35622895,99.773,99.69,15.0461]
[1644689648903,2.83722895,99.772,99.69,15.0461]
[1644689649098,4.521,99.771,99.69,15.0461]
[1644689649305,2.83722895,99.77,99.69,15.0461]
[1644689649498,7.36322895,99.77,99.66,50.1535]
[1644689649699,2.83722895,99.768,99.66,50.1535]
[1644689649900,4.513,99.767,99.66,50.1535]
[1644689650099,2.83722895,99.767,99.66,50.1535]
[1644689650301,2.83722895,99.768,99.661,105.314]
[1644689650505,4.475,99.766,99.66,15.0496]
[1644689650702,2.83722895,99.761,99.66,15.0496]
[1644689650902,12.2,99.75,99.624,0.50169313]
[1644689651100,12.2,99.74,99.641,0.25]
[1644689651302,12.2,99.74,99.624,0.50169313]
[1644689651506,2.83846629,99.739,99.625,5.015]
[1644689651702,7.25146629,99.739,99.624,0.50169313]
[1644689651903,4.413,99.739,99.624,0.50169313]
[1644689652105,3.0964645,99.671,99.624,0.50169313]
[1644689652304,3.0964645,99.671,99.64,15.0531]
[1644689652504,6.45e-05,99.671,99.651,39.0]
[1644689652706,6.45e-05,99.671,99.65,12.2]
[1644689652707,6.45e-05,99.671,99.653,100.3]
[1644689653404,6.45e-05,99.671,99.66,15.0451]
[1644689653603,6.45e-05,99.671,99.66,20.7713307]
[1644689654415,6.45e-05,99.671,99.66,5.7262307]
[1644689655015,6.45e-05,99.671,99.661,5.266]
[1644689655216,6.45e-05,99.671,99.662,0.25]
[1644689655616,6.45e-05,99.671,99.663,5.016]
[1644689655817,6.45e-05,99.671,99.662,0.25]
[1644689656020,6.45e-05,99.671,99.663,5.016]
[1644689656220,6.45e-05,99.671,99.662,0.25]
[1644689656919,6.45e-05,99.671,99.663,5.016]
[1644689657219,6.45e-05,99.671,99.662,0.25]
[1644689657423,6.45e-05,99.671,99.664,100.3]
[1644689657620,6.45e-05,99.671,99.662,0.25]
[1644689657621,6.45e-05,99.671,99.666,100.3]
[1644689657822,6.45e-05,99.671,99.66,18.42957563]
[1644689658326,6.45e-05,99.671,99.661,0.25]
[1644689658821,6.45e-05,99.671,99.66,18.42957563]
[1644689660224,6.45e-05,99.671,99.661,0.25]
[1644689660524,6.45e-05,99.671,99.661,100.55]
[1644689661524,6.45e-05,99.671,99.663,100.3]
[1644689662126,6.45e-05,99.671,99.665,100.3]
[1644689662327,2.4119954,99.743,99.69,15.0446]
[1644689662630,47.124518,99.742,99.69,15.0446]
[1644689663828,47.124518,99.742,99.671,105.314]
[1644689664230,47.124518,99.742,99.672,0.25]
[1644689664527,3.1041482,99.7,99.672,0.25]
[1644689665527,3.1041482,99.7,99.68,15.0477]
[1644689666028,3.1041482,99.7,99.66,3.37887563]
[1644689666428,34.21157416,99.699,99.66,3.37887563]
[1644689667028,34.21157416,99.699,99.66,18.42847563]
[1644689667228,34.21157416,99.699,99.66,3.37887563]
[1644689670430,33.71157416,99.699,99.66,3.37887563]
[1644689672041,64.0,99.698,99.624,0.50169313]
[1644689672234,4.514,99.697,99.624,0.50169313]
[1644689672433,7.13790296,99.697,99.624,9.313e-05]
[1644689672636,64.0,99.696,99.566,100.3]
[1644689672836,12.2,99.69,99.54,12.2]
[1644689673034,4.521,99.689,99.54,12.2]
[1644689673234,4.521,99.689,99.54,15.0678]
[1644689673435,43.5384048,99.682,99.54,15.0678]
[1644689673635,12.2,99.67,99.54,15.0678]
[1644689673836,27.7071,99.669,99.54,15.0678]
[1644689674035,27.7071,99.669,99.541,100.3]
[1644689674236,15.0678,99.65,99.541,100.3]
[1644689674538,43.84638423,99.649,99.56,15.0652]
[1644689674737,39.33738423,99.649,99.561,100.3]
[1644689674939,39.33738423,99.649,99.561,102.92390296]
[1644689675139,39.33738423,99.649,99.562,7.89290296]
[1644689675339,39.33738423,99.649,99.562,2.87390296]
[1644689675539,39.33738423,99.649,99.562,0.25]
[1644689675739,4.381,99.648,99.562,0.25]
[1644689676742,4.381,99.648,99.57,15.0641]
[1644689676943,39.33738423,99.649,99.571,100.05]
[1644689677345,2.62390296,99.648,99.521,5.019]
[1644689677641,2.62390296,99.648,99.491,5.021]
[1644689677842,73.3703,99.647,99.48,12.2]
[1644689678141,2.62390296,99.646,99.52,15.071]
[1644689678343,15.0683,99.64,99.521,100.3]
[1644689678742,15.0683,99.64,99.521,102.92390296]
[1644689678940,39.33738423,99.649,99.522,2.62390296]
[1644689679142,39.33738423,99.649,99.55,15.0658]
[1644689679542,39.33738423,99.649,99.551,102.92390296]
[1644689679941,39.33738423,99.649,99.552,2.62390296]
[1644689680542,39.33738423,99.649,99.531,100.3]
[1644689680745,2.62390296,99.648,99.531,100.3]
[1644689680942,2.62390296,99.648,99.532,5.019]
[1644689681345,2.62390296,99.648,99.531,100.3]
[1644689681542,2.62390296,99.648,99.532,5.019]
[1644689681744,2.62390296,99.648,99.56,15.0648]
[1644689683045,2.62390296,99.648,99.56,11.9606518]
[1644689683245,39.33738423,99.649,99.56,11.9606518]
[1644689683646,39.33738423,99.649,99.561,0.25]
[1644689683846,2.62390296,99.648,99.561,0.25]
[1644689685146,39.33738423,99.649,99.561,0.25]
[1644689685349,7.12890296,99.648,99.561,0.25]
[1644689686148,7.12890296,99.648,99.56,11.9606518]
[1644689686347,2.62390296,99.648,99.561,0.25]
[1644689686647,4.51,99.647,99.56,11.9606518]
[1644689686947,7.13390296,99.647,99.56,11.9606518]
[1644689688250,15.0669,99.64,99.56,11.9606518]
[1644689688449,4.511,99.639,99.56,11.9606518]
[1644689689054,4.513,99.646,99.56,11.9606518]